bitfinex-derivatives/quotes_ETHF0:USTF0_20260310
["timestamp","ask_amount","ask_price","bid_price","bid_amount"]
[1773135037166,7.86201806,2069.6,2068.6,2.85476704]
[1773135037365,1.53001806,2069.5,2068.6,2.85476704]
[1773135037662,1.53001806,2069.5,2068.7,2.85476704]
[1773135038665,6.332,2069.6,2068.5,2.85476704]
[1773135038666,1.5220848,2069.3,2068.5,2.85476704]
[1773135039165,1.2822856,2069.1,2068.5,2.85476704]
[1773135040764,1.26667097,2069.0,2068.5,2.85476704]
[1773135041260,6.332,2069.1,2068.4,0.00377604]
[1773135041261,1.52206335,2068.9,2068.4,0.00377604]
[1773135041462,1.52206335,2068.9,2068.2,2.85476704]
[1773135041664,1.52206335,2068.9,2067.6,2.85476704]
[1773135041665,0.0084698,2068.2,2067.6,2.85476704]
[1773135041965,6.3404698,2068.2,2067.6,2.85476704]
[1773135042375,6.3404698,2068.2,2067.6,2.86008274]
[1773135042376,6.34617416,2068.2,2067.6,2.86008274]
[1773135042976,0.6302372,2068.1,2067.6,2.86008274]
[1773135043176,6.33770436,2068.2,2067.6,2.86008274]
[1773135044479,6.97296957,2068.2,2067.6,2.86008274]
[1773135045675,0.57598148,2068.0,2067.6,2.86008274]
[1773135045875,0.57598148,2068.0,2067.6,2.88407221]
[1773135046878,0.24177,2067.9,2067.2,2.87875651]
[1773135047180,7.01189683,2067.8,2067.2,2.87875651]
[1773135047575,6.333,2067.8,2067.2,2.87875651]
[1773135048074,6.333,2067.8,2067.2,2.88472985]
[1773135048578,0.90551095,2067.7,2067.2,2.88472985]
[1773135048778,0.66371095,2067.6,2067.2,2.88472985]
[1773135049180,0.90300483,2067.7,2067.2,2.88472985]
[1773135050480,0.2418,2067.7,2067.2,2.88472985]
[1773135052186,6.58145436,2068.2,2067.2,2.88472985]
[1773135053778,6.335,2068.5,2067.2,2.88472985]
[1773135054083,0.24168,2068.8,2067.4,2.83223479]
[1773135054882,0.8669552,2068.8,2067.4,2.83223479]
[1773135055082,0.24547363,2068.8,2067.4,2.83223479]
[1773135055277,0.24547363,2068.8,2067.6,2.85102632]
[1773135055478,6.335,2069.2,2067.6,2.85102632]
[1773135055885,6.335,2069.2,2067.7,40.8]
[1773135056087,6.90287488,2069.2,2067.8,2.85092867]
[1773135056581,6.90841795,2069.2,2067.8,2.85092867]
[1773135056777,0.57666312,2069.1,2067.8,2.85092867]
[1773135056983,0.81830312,2069.1,2067.8,2.85092867]
[1773135057484,0.81830312,2069.1,2068.0,2.83223479]
[1773135059882,0.24164,2069.1,2068.0,2.83223479]
[1773135061383,0.65486544,2069.1,2068.0,2.83223479]
[1773135062378,6.34054307,2069.2,2068.0,2.83223479]
[1773135063289,0.00554307,2069.2,2068.0,2.83223479]
[1773135065588,0.00554307,2069.2,2068.2,2.93018194]
[1773135066391,0.00554307,2069.2,2068.2,11.11618194]
[1773135066592,0.00554307,2069.2,2068.3,2.92992586]
[1773135067294,0.34748198,2069.1,2068.3,2.92992586]
[1773135067499,0.34748198,2068.9,2068.3,2.92992586]
[1773135067792,0.24165,2069.0,2068.3,2.92992586]
[1773135068995,0.34463322,2069.2,2068.3,2.92992586]
[1773135069497,0.34463322,2069.2,2068.4,2.91875602]
[1773135071600,0.4897634,2069.0,2068.4,2.91875602]
[1773135072704,0.24166,2068.9,2068.4,2.91875602]
[1773135074802,0.73329991,2068.9,2068.4,2.91875602]
[1773135077000,0.60271067,2068.8,2068.4,2.91875602]
[1773135077806,1.75062079,2068.7,2067.7,2.85158672]
[1773135078699,0.24168,2068.7,2067.7,2.85158672]
[1773135078906,1.50054005,2069.1,2067.7,2.85158672]
[1773135079211,2.08598792,2068.7,2067.7,2.85158672]
[1773135080715,0.24173,2068.3,2067.7,2.85158672]
[1773135083311,2.15955164,2068.3,2067.7,2.85158672]
[1773135085210,0.24173,2068.3,2067.7,2.85158672]
[1773135085412,1.97619876,2068.4,2067.7,2.85158672]
[1773135085606,1.97619876,2068.7,2067.7,2.85158672]
[1773135086604,0.24169,2068.6,2067.7,2.85158672]
[1773135086810,2.20029825,2068.6,2067.7,2.85158672]
[1773135087214,0.24169,2068.6,2067.7,2.85158672]
[1773135089612,1.99957961,2068.9,2067.7,2.85158672]
[1773135090112,1.99957961,2068.9,2067.7,3.09338672]
[1773135090418,2.23218963,2068.8,2067.7,2.85158672]
[1773135091112,2.23218963,2068.8,2067.9,2.85158672]
[1773135091305,2.23218963,2068.8,2068.0,2.85158672]
[1773135094612,0.24167,2068.8,2068.0,2.85158672]
[1773135097720,0.00554307,2069.2,2068.0,3.09333672]
[1773135097915,0.00554307,2069.2,2068.1,2.85600441]
[1773135098115,0.00554307,2069.2,2068.3,2.85600441]
[1773135098622,1.79642911,2069.2,2068.3,2.85600441]
[1773135102422,2.05597103,2069.1,2068.4,2.85600441]
[1773135103426,0.24163,2069.1,2068.4,2.85600441]
[1773135103620,2.04663676,2069.1,2068.4,2.85600441]
[1773135104225,0.24163,2069.1,2068.4,2.85600441]
[1773135105616,0.00554307,2069.2,2068.4,2.85600441]
[1773135107023,0.24158,2069.6,2068.7,2.85600441]
[1773135107222,2.02364518,2069.6,2068.8,2.85600441]
[1773135107819,1.77304296,2069.1,2068.3,2.85600441]
[1773135108018,2.0144323,2069.0,2068.4,2.85600441]
[1773135108418,0.24165,2069.0,2068.4,2.85600441]
[1773135109329,0.00493835,2069.1,2068.4,2.85600441]
[1773135111131,1.75832371,2069.1,2068.6,2.81772615]
[1773135111727,0.00493835,2069.1,2068.6,2.81772615]
[1773135111931,0.24159,2069.5,2068.6,2.81772615]
[1773135112132,1.99932857,2069.5,2068.6,2.81772615]
[1773135112830,2.00465477,2069.5,2068.6,2.81772615]
[1773135115533,2.07075284,2070.0,2068.6,2.81772615]
[1773135116133,2.07075284,2070.0,2068.7,2.81772615]
[1773135116637,2.07647415,2070.0,2068.7,2.81772615]
[1773135118430,2.07647415,2070.0,2068.8,2.81772615]
[1773135118728,1.79330652,2069.5,2068.9,2.81772615]
[1773135120633,2.01033825,2069.0,2068.5,2.81772615]
[1773135120934,2.01033825,2069.0,2068.3,2.82199681]
[1773135121132,0.24165,2069.0,2068.3,2.82199681]
[1773135121330,1.76385147,2069.3,2068.3,2.82199681]
[1773135122637,1.74521224,2069.1,2068.3,2.82199681]
[1773135124639,1.7006235,2068.9,2068.3,2.82199681]
[1773135124837,1.78653378,2068.7,2068.3,2.73181587]
[1773135125136,1.78915719,2068.5,2067.8,2.87440542]
[1773135125933,1.79331745,2068.5,2067.8,2.87813286]
[1773135127941,1.76884091,2068.3,2067.8,2.87813286]
[1773135128446,1.76845676,2068.1,2067.8,0.00372744]
[1773135128641,1.76845676,2068.1,2067.6,2.87440542]
[1773135129445,1.76845676,2068.1,2067.2,2.87440542]
[1773135129642,1.76845676,2068.1,2067.2,2.87952966]
[1773135130245,1.75068217,2068.5,2067.2,2.87952966]
[1773135130945,1.75068217,2068.5,2067.4,2.87440542]
[1773135131746,0.00416026,2068.5,2067.4,2.87440542]
[1773135133851,6.333,2069.0,2067.6,2.63290558]
[1773135133852,1.68170785,2069.0,2067.6,2.63290558]
[1773135134047,0.24163,2069.2,2067.6,2.63290558]
[1773135134048,1.68139777,2068.8,2067.6,2.63290558]
[1773135134354,1.68139777,2068.8,2067.8,2.63290558]
[1773135134554,1.68139777,2068.8,2067.9,2.63290558]
[1773135134854,1.68542741,2068.8,2067.9,2.63290558]
[1773135135753,1.67760094,2068.6,2067.9,2.63290558]
[1773135140655,0.24168,2068.7,2067.9,2.63290558]
[1773135141362,1.67203471,2068.8,2067.9,2.63290558]
[1773135142657,1.65258784,2068.8,2067.9,2.63290558]
[1773135142859,0.00402964,2068.8,2067.9,2.63290558]
[1773135143063,1.76057691,2069.2,2067.9,2.63290558]
[1773135143661,1.76057691,2069.2,2068.1,2.59913956]
[1773135143961,1.51348878,2069.1,2068.1,2.59913956]
[1773135144562,1.75858984,2069.2,2068.1,2.59913956]
[1773135144863,0.00368188,2069.2,2068.1,2.59913956]
[1773135145357,0.00368188,2069.2,2068.1,2.84088956]
[1773135145561,4.0421793,2070.0,2068.6,2.59913956]
[1773135145562,1.52589574,2070.0,2068.6,2.59913956]
[1773135145860,1.52589574,2070.0,2068.8,2.59913956]
[1773135146463,1.53197783,2070.0,2068.8,2.60424623]
[1773135147764,1.45577898,2069.8,2068.8,2.60424623]
[1773135151867,1.41236296,2069.6,2068.8,2.60424623]
[1773135152069,0.24156,2069.7,2068.8,2.60424623]
[1773135152264,1.41828432,2070.0,2068.8,2.60424623]
[1773135152464,0.00608209,2070.0,2068.8,2.84590623]
[1773135152765,1.65371223,2070.2,2069.0,2.59913956]
[1773135152766,0.24151,2070.2,2069.0,2.59913956]
[1773135153070,0.24151,2070.2,2069.2,2.59913956]
[1773135153370,6.332,2070.5,2069.1,8.271]
[1773135153371,1.40653737,2070.5,2069.3,2.59913956]
[1773135153766,1.41026975,2070.5,2069.3,2.59913956]
[1773135155068,1.43635042,2070.3,2069.4,2.55094565]
[1773135161075,1.64406861,2070.4,2069.4,2.55094565]
[1773135161670,0.24148,2070.4,2069.4,2.55094565]
[1773135162472,1.39707277,2070.5,2069.4,2.55094565]
[1773135165782,0.00373238,2070.5,2069.6,2.4810571]
[1773135167177,1.71471817,2070.8,2069.6,2.4810571]
[1773135168082,1.71471817,2070.8,2069.6,2.7226271]
[1773135168279,1.7193807,2070.8,2069.6,2.7226271]
[1773135170576,1.7193807,2070.8,2069.6,2.4810571]
[1773135170781,1.72377584,2070.6,2069.6,2.4810571]
[1773135170973,0.24145,2070.7,2069.6,2.4810571]
[1773135171180,1.72843837,2070.8,2069.6,2.4810571]
[1773135171373,0.00466253,2070.8,2069.6,2.4810571]
[1773135171580,1.94943473,2070.8,2069.6,2.4810571]
[1773135171780,1.69429894,2070.3,2069.6,2.4810571]
[1773135172082,1.69429894,2070.1,2068.9,2.4810571]
[1773135172780,1.68481583,2069.7,2068.9,2.4810571]
[1773135175082,1.65853675,2069.5,2068.5,2.4810571]
[1773135176083,1.65853675,2069.5,2068.5,2.48544875]
[1773135176788,1.6405151,2070.0,2068.5,2.48544875]
[1773135177790,1.6405151,2070.0,2068.7,2.4810571]
[1773135177984,6.329,2070.4,2068.7,2.4810571]
[1773135177985,1.59468413,2070.2,2068.8,2.4810571]
[1773135178289,1.59468413,2070.2,2068.9,2.4810571]
[1773135179086,1.59468413,2070.2,2069.0,2.4810571]
[1773135180285,1.47558798,2069.7,2068.8,2.4810571]
[1773135180788,1.46668203,2069.8,2068.8,2.4810571]
[1773135183187,1.4847018,2070.2,2068.8,2.4810571]
[1773135183694,1.4847018,2070.2,2068.9,2.54061721]
[1773135183893,1.4847018,2070.2,2069.0,2.54061721]
[1773135187397,1.45287578,2070.0,2069.1,2.54061721]
[1773135188298,1.44378918,2069.8,2069.1,2.54061721]
[1773135189791,1.44378918,2069.8,2068.6,2.54061721]
[1773135189992,1.43464373,2069.6,2068.6,2.54061721]
[1773135190594,1.42558673,2069.2,2068.6,2.54061721]
[1773135190799,1.43174074,2069.2,2068.5,0.00439165]
[1773135190999,1.43174074,2069.2,2068.5,2.54500886]
[1773135191398,1.43174074,2069.2,2068.5,0.00439165]
[1773135193999,0.24163,2069.1,2068.5,0.00439165]
[1773135194302,1.46239911,2069.0,2068.5,0.00439165]
[1773135195498,1.46239911,2069.0,2068.2,2.54061721]
[1773135195701,1.51655455,2068.8,2068.2,2.54061721]
[1773135196602,1.51655455,2068.8,2068.2,2.54567729]
[1773135196804,1.51655455,2068.8,2068.2,0.00506008]
[1773135199008,1.56097376,2068.6,2067.4,2.54061721]
[1773135199610,1.55237356,2068.4,2067.4,2.54061721]
[1773135200008,1.55237356,2068.4,2067.4,2.54460193]
[1773135204004,1.48918982,2068.2,2067.4,2.54460193]
[1773135211411,1.45998895,2068.0,2067.4,2.54460193]
[1773135211711,0.24175,2068.1,2067.4,2.54460193]
[1773135211712,1.69335935,2068.8,2067.4,2.54460193]
[1773135211906,1.69335935,2068.8,2067.6,2.54061721]
[1773135212111,1.69270877,2068.6,2067.6,2.54061721]
[1773135212713,1.92624773,2068.5,2067.6,2.54061721]
[1773135213411,1.65264359,2068.2,2067.4,2.54460193]
[1773135213608,1.66738139,2068.0,2067.4,2.54460193]
[1773135215314,1.66254655,2067.8,2067.2,2.47786153]
[1773135215616,1.66254655,2067.8,2066.7,2.47786153]
[1773135216312,1.66254655,2067.8,2066.7,2.48145109]
[1773135218508,0.2418,2067.7,2066.7,2.48145109]
[1773135218713,1.61676289,2067.6,2066.7,2.48145109]
[1773135220115,1.83791175,2067.5,2066.7,2.48145109]
[1773135224120,0.00397231,2067.7,2066.7,2.48145109]
[1773135225918,1.61749809,2067.7,2066.7,2.48145109]
[1773135226118,1.61749809,2067.7,2066.8,2.47786153]
[1773135227317,0.00397231,2067.7,2066.8,2.47786153]
[1773135227520,0.00397231,2067.7,2066.8,9.98306674]
[1773135227716,1.64231254,2067.7,2066.9,2.47786153]
[1773135229223,0.00397231,2067.7,2066.9,2.47786153]
[1773135229426,1.45355927,2067.7,2066.9,2.47786153]
[1773135232523,0.00397231,2067.7,2066.9,2.47786153]
[1773135233228,1.42956744,2067.7,2066.9,2.47786153]
[1773135234530,1.67137744,2067.7,2066.9,2.47786153]
[1773135237627,1.35955675,2067.5,2066.9,2.47786153]
[1773135239631,7.91216405,2067.7,2066.9,2.47786153]
[1773135239831,1.32256213,2067.6,2066.9,2.47786153]
[1773135240435,1.32219764,2068.0,2066.9,2.47786153]
[1773135240635,7.66216995,2068.1,2067.1,2.45470173]
[1773135240831,1.31836186,2068.0,2067.2,2.45470173]
[1773135241640,1.30972522,2067.8,2067.2,2.45470173]
[1773135244033,1.29010237,2067.6,2067.2,2.45470173]
[1773135244443,1.53190237,2067.7,2067.2,2.45470173]
[1773135245740,1.2765533,2067.6,2067.2,2.45470173]
[1773135245937,3.14791558,2067.5,2066.8,2.22916719]
[1773135246341,1.27619427,2067.5,2066.8,2.22916719]
[1773135248643,2.62895206,2067.4,2066.8,2.22916719]
[1773135250838,0.24188,2067.0,2066.8,2.22916719]
[1773135251044,2.62900206,2067.0,2066.7,2.23275675]
[1773135251742,2.62900206,2067.0,2066.4,2.22916719]
[1773135251936,2.62900206,2067.0,2066.4,2.23275675]
[1773135252540,2.38712206,2066.5,2066.0,2.22916719]
[1773135252743,2.39190783,2066.5,2066.0,2.2341722]
[1773135252943,8.72412206,2066.9,2066.0,2.2341722]
[1773135253144,2.38712206,2066.8,2066.0,2.2341722]
[1773135253946,2.39189205,2066.8,2066.0,2.2341722]
[1773135254945,0.00476999,2066.8,2066.0,2.2341722]
[1773135255648,2.39189205,2066.8,2066.0,2.2341722]
[1773135258851,0.24187,2067.1,2066.0,2.2341722]
[1773135259053,6.338,2067.4,2066.1,2.22916719]
[1773135259054,8.72512206,2067.4,2066.1,2.22916719]
[1773135259250,8.72512206,2067.4,2066.3,2.22916719]
[1773135259449,2.38712206,2067.3,2066.3,2.22916719]
[1773135259952,2.39128518,2067.3,2066.3,2.22916719]
[1773135261854,0.00416312,2067.3,2066.3,2.22916719]
[1773135262149,2.39128518,2067.3,2066.3,2.22916719]
[1773135263455,0.00416312,2067.3,2066.6,2.22916719]
[1773135264853,2.38712206,2067.6,2066.6,2.22916719]
[1773135265049,2.62893206,2067.7,2066.8,2.22916719]
[1773135265555,6.57875,2068.2,2066.8,2.22916719]
[1773135265756,2.38712206,2068.0,2066.9,2.22916719]
[1773135265951,2.39333682,2068.0,2066.9,2.22916719]
[1773135267452,0.24177,2067.9,2066.9,2.22916719]
[1773135267662,2.38712206,2067.8,2066.9,2.22916719]
[1773135268358,0.00621476,2068.0,2066.9,2.22916719]
[1773135268359,2.38712206,2067.6,2066.9,2.22916719]
[1773135268757,2.62894206,2067.5,2066.7,2.22916719]
[1773135269956,0.24182,2067.5,2066.7,2.22916719]
[1773135270556,2.62894206,2067.5,2066.7,2.22916719]
[1773135272461,2.38712206,2067.5,2066.7,2.22916719]
[1773135272659,2.38712206,2067.7,2066.7,2.22916719]
[1773135273658,0.24181,2067.6,2066.7,2.22916719]
[1773135273858,2.21926747,2067.5,2066.7,2.22916719]
[1773135281364,2.21926747,2067.4,2066.7,2.22916719]
[1773135283669,2.46107747,2067.6,2066.7,2.22916719]
[1773135284370,2.21926747,2067.6,2066.7,2.22916719]
[1773135285565,2.21926747,2067.6,2066.9,2.22344293]
[1773135285770,2.21926747,2067.6,2067.1,2.22344293]
[1773135290174,2.21926747,2067.6,2066.6,7.50520521]
[1773135290175,2.21926747,2067.4,2066.8,2.22344293]
[1773135290368,6.337,2067.8,2067.0,2.22344293]
[1773135290670,2.21926747,2067.6,2067.0,2.22344293]
[1773135292869,0.24182,2067.5,2067.0,2.22344293]
[1773135293069,2.20787862,2067.4,2066.7,2.31327469]
[1773135294874,2.20787862,2067.6,2066.8,2.31327469]
[1773135296074,2.20787862,2067.6,2066.9,2.31327469]
[1773135301375,2.44964862,2067.9,2067.0,2.31327469]
[1773135301579,2.20787862,2067.8,2067.1,2.31327469]
[1773135302780,2.20787862,2067.4,2067.0,2.31327469]
[1773135304174,2.193122,2067.1,2066.6,6.58552502]
[1773135304376,2.434962,2067.3,2066.6,2.21960436]
[1773135304776,4.0431869,2067.7,2066.6,2.21960436]
[1773135304975,2.193122,2067.5,2066.7,2.21960436]
[1773135305474,0.24179,2067.8,2067.0,2.21960436]
[1773135305779,0.00621476,2068.0,2067.0,2.21960436]
[1773135305973,0.85080207,2067.9,2067.0,2.21960436]
[1773135309278,1.02706796,2067.7,2067.0,2.21960436]
[1773135310080,1.02159525,2067.0,2066.4,2.21960436]
[1773135310280,1.02159525,2067.4,2066.4,2.21960436]
[1773135310580,1.02159525,2067.2,2066.4,2.21960436]
[1773135312081,0.24183,2067.4,2066.4,2.21960436]
[1773135312780,1.28190696,2067.4,2066.4,2.21960436]
[1773135312975,1.04007696,2067.4,2066.4,2.21960436]
[1773135317487,1.01332697,2067.5,2066.4,2.21960436]
[1773135318286,1.00767816,2067.8,2066.4,2.21960436]
[1773135319394,0.99306316,2067.6,2066.4,2.21960436]
[1773135321189,0.87875076,2067.9,2066.6,2.21960436]
[1773135321494,0.87875076,2067.9,2066.8,2.21960436]
[1773135325197,0.88380439,2067.7,2066.8,2.21960436]
[1773135326596,0.87312474,2067.5,2066.8,2.21960436]
[1773135331109,0.85329469,2067.9,2066.8,2.21960436]
[1773135331302,0.85329469,2067.6,2066.9,2.21960436]
[1773135332306,0.84764412,2067.4,2066.9,2.21960436]
[1773135332508,0.84764412,2067.4,2066.7,2.21960436]
[1773135335503,0.24184,2067.3,2066.7,2.21960436]
[1773135335711,0.82347527,2067.2,2066.4,2.33580484]
[1773135336111,0.81785174,2067.0,2066.4,2.33580484]
[1773135336907,0.81785174,2067.0,2066.0,7.55971523]
[1773135337108,0.81785174,2067.0,2066.1,2.33580484]
[1773135337808,1.05134386,2067.1,2066.1,2.33580484]
[1773135338104,0.80889024,2067.0,2066.1,2.33580484]
[1773135338610,0.80889024,2067.2,2066.1,2.33580484]
[1773135339107,0.80093198,2067.1,2066.1,2.33580484]
[1773135339502,0.80093198,2066.9,2066.1,2.33580484]
[1773135340516,4.0431869,2067.3,2066.1,2.33580484]
[1773135340517,0.79525808,2067.3,2066.1,2.33580484]
[1773135340809,0.79016187,2067.1,2066.1,2.33580484]
[1773135342209,0.76717777,2067.3,2066.1,10.73380484]
[1773135342409,7.10417777,2067.4,2066.3,2.33580484]
[1773135342615,7.10417777,2067.4,2066.4,2.33580484]
[1773135342809,0.24183,2067.5,2066.4,2.33580484]
[1773135343210,0.93228441,2067.5,2066.4,2.33580484]
[1773135343808,0.93228441,2067.5,2066.5,2.33580484]
[1773135344710,0.6798122,2067.4,2066.5,2.33580484]
[1773135347311,6.338,2067.7,2066.5,2.33580484]
[1773135347312,0.68219707,2067.7,2066.5,2.33580484]
[1773135347515,0.68219707,2067.6,2066.6,2.33580484]
[1773135348510,0.67658002,2067.7,2066.8,2.33580484]
[1773135349514,0.91404467,2067.8,2066.8,2.33580484]
[1773135349709,1.6138827,2067.8,2066.8,2.33580484]
[1773135351524,0.68408926,2067.7,2066.8,2.33580484]
[1773135353821,0.91404467,2067.8,2066.8,2.33580484]
[1773135354017,0.66178192,2067.7,2066.8,2.33580484]
[1773135354315,0.66178192,2067.7,2066.9,2.29492853]
[1773135357117,0.91404467,2067.8,2066.9,2.29492853]
[1773135357518,6.03939979,2068.5,2066.9,2.29492853]
[1773135357519,1.47644329,2068.6,2067.5,2.29492853]
[1773135357710,1.47203,2068.4,2067.5,2.29492853]
[1773135358313,1.71812505,2068.5,2067.5,2.29492853]
[1773135358519,1.72324063,2068.5,2067.5,2.29927002]
[1773135359916,0.00511558,2068.5,2067.5,2.29927002]
[1773135360415,1.5238278,2068.9,2067.7,5.10217684]
[1773135360621,1.5238278,2068.9,2067.8,2.29492853]
[1773135361617,1.5292337,2068.9,2067.8,2.29492853]
[1773135363020,1.50578036,2068.7,2067.8,2.29492853]
[1773135363217,1.50578036,2068.5,2067.8,2.29492853]
[1773135363725,0.24169,2068.6,2067.8,2.29492853]
[1773135364519,1.51255759,2068.9,2067.8,2.29492853]
[1773135366819,1.51255759,2068.9,2067.8,2.53670853]
[1773135367122,1.45021735,2069.2,2068.1,2.28784724]
[1773135367625,1.45085773,2069.0,2068.1,2.28784724]
[1773135367926,1.45085773,2069.5,2068.1,2.28784724]
[1773135368121,1.45051611,2069.2,2068.1,2.28784724]
[1773135368321,1.69214611,2069.2,2068.1,2.28784724]
[1773135372527,1.44246266,2068.7,2068.1,2.28784724]
[1773135373028,1.44246266,2068.7,2067.6,2.28784724]
[1773135373029,1.40674145,2068.5,2067.6,2.28784724]
[1773135373424,1.40674145,2068.3,2067.6,2.28784724]
[1773135373626,1.40674145,2068.2,2067.6,2.28784724]
[1773135374028,1.64848145,2068.2,2067.6,2.28784724]
[1773135374223,7.74074145,2068.2,2067.6,2.28784724]
[1773135374625,1.39685585,2068.1,2067.6,2.28784724]
[1773135375325,1.39685585,2068.1,2067.5,0.00434149]
[1773135375525,1.42286644,2067.9,2067.5,0.00434149]
[1773135375726,1.42637095,2067.9,2067.5,0.00434149]
[1773135375932,1.41374438,2067.7,2066.8,2.28784724]
[1773135376929,1.41374438,2067.7,2066.8,2.29241486]
[1773135377131,0.00350451,2067.9,2066.8,5.09966317]
[1773135377330,0.00350451,2067.9,2066.9,2.28784724]
[1773135378232,1.40770463,2068.3,2067.2,2.28784724]
[1773135378727,1.40770463,2068.5,2067.4,2.28784724]
[1773135379034,0.00386285,2068.5,2067.4,2.28784724]
[1773135379632,0.00386285,2068.5,2067.6,2.28784724]
[1773135384138,1.08089019,2068.9,2067.6,2.28784724]
[1773135385031,1.0851601,2068.9,2067.6,2.28784724]
[1773135385231,1.09406269,2068.7,2067.6,2.28784724]
[1773135385433,1.33573269,2068.8,2067.6,2.28784724]
[1773135385628,1.08953157,2068.3,2067.6,2.28784724]
[1773135387036,1.23573384,2068.5,2067.6,2.28784724]
[1773135387238,1.23573384,2068.4,2067.6,2.28784724]
[1773135388234,1.2307266,2068.2,2067.3,2.28784724]
[1773135390542,1.20636083,2068.2,2067.3,2.28784724]
[1773135393039,1.29118543,2068.0,2067.3,2.28784724]
[1773135393339,1.29118543,2068.0,2066.8,0.00456762]
[1773135393340,1.29118543,2068.0,2066.9,2.28784724]
[1773135394038,1.28970858,2067.8,2066.9,2.28784724]
[1773135394339,1.28923618,2067.7,2066.9,2.28784724]
[1773135397645,1.25188845,2067.5,2066.9,2.28784724]
[1773135399943,1.46779244,2067.9,2066.9,2.28784724]
[1773135400248,1.2257449,2067.7,2066.9,2.28784724]
[1773135401350,1.22039375,2067.5,2066.9,2.28784724]
[1773135402049,1.21562554,2067.6,2066.9,2.28784724]
[1773135404652,1.19713244,2068.0,2066.9,2.28784724]
[1773135409649,1.21695449,2067.8,2066.9,2.28784724]
[1773135409855,1.21224512,2067.6,2066.9,2.28784724]
[1773135411751,1.19789662,2067.4,2066.9,2.28784724]
[1773135411958,1.20379221,2067.4,2066.9,2.28784724]
[1773135412453,1.6814631,2067.2,2066.6,2.16881964]
[1773135412852,0.00589559,2067.4,2066.6,2.16881964]
[1773135413361,2.11802607,2067.4,2066.6,2.16881964]
[1773135413564,2.11802607,2067.4,2066.6,2.17419684]
[1773135416065,2.35986607,2067.4,2066.6,2.17419684]
[1773135421964,2.11213048,2067.2,2066.6,2.17419684]
[1773135422359,2.11213048,2067.7,2066.6,2.17419684]
[1773135422565,8.44913048,2067.7,2066.6,2.17419684]
[1773135422967,2.11213048,2067.6,2066.6,2.17419684]
[1773135423163,0.24178,2067.9,2066.7,2.16881964]
[1773135423164,2.11213048,2067.9,2066.7,2.16881964]
[1773135423368,8.44913048,2067.9,2066.8,2.16881964]
[1773135423570,8.45528526,2067.9,2066.9,2.10540231]
[1773135426477,2.11828526,2067.9,2066.9,2.10540231]
[1773135426679,8.45528526,2067.9,2066.9,2.10540231]
[1773135426977,0.00615478,2067.9,2067.1,2.10540231]
[1773135427273,2.09755779,2068.3,2067.1,2.10540231]
[1773135427973,2.09755779,2068.1,2067.1,2.10540231]
[1773135428174,2.10352193,2068.1,2067.1,2.10540231]
[1773135429873,0.00596414,2068.1,2067.1,2.10540231]
[1773135430080,0.00596414,2068.1,2067.1,9.66011253]
[1773135430280,0.00596414,2068.1,2067.2,2.10540231]
[1773135430477,2.10352193,2068.1,2067.2,2.10540231]
[1773135432374,0.00596414,2068.1,2067.2,2.10540231]
[1773135432682,2.09755779,2068.5,2067.4,2.10540231]
[1773135433078,2.09755779,2068.7,2067.4,2.10540231]
[1773135433279,8.43355779,2068.7,2067.4,2.10540231]
[1773135433480,8.43355779,2068.7,2067.6,2.10540231]
[1773135433681,8.43901514,2068.7,2067.6,2.10540231]
[1773135434385,0.00545735,2068.7,2067.7,0.2418]
[1773135434686,0.00545735,2068.7,2067.8,2.10540231]
[1773135436482,2.09755779,2069.1,2067.8,2.10540231]
[1773135437485,2.1032548,2069.1,2067.8,2.10540231]
[1773135437678,2.09755779,2068.9,2067.8,2.10540231]
[1773135437883,2.09755779,2068.7,2067.8,2.10540231]
[1773135438187,2.09755779,2068.6,2067.8,2.10540231]
[1773135439288,2.09755779,2068.4,2067.8,2.10540231]
[1773135440183,2.09755779,2068.4,2067.2,2.10540231]
[1773135441885,2.09755779,2068.2,2067.2,2.10540231]
[1773135445090,2.09755779,2068.3,2067.2,2.10540231]
[1773135447697,2.09755779,2068.2,2067.2,2.10540231]
[1773135450198,2.33927779,2068.4,2067.2,2.10540231]
[1773135455800,2.09073486,2068.2,2067.2,2.10540231]
[1773135455999,2.09073486,2068.1,2067.2,2.10540231]
[1773135456196,2.09073486,2068.2,2067.2,2.10540231]
[1773135462696,2.09073486,2068.2,2067.3,2.09572845]
[1773135465199,2.33248486,2068.2,2067.2,2.09572845]
[1773135465505,2.09073486,2068.0,2067.2,2.09572845]
[1773135465701,2.09073486,2067.8,2067.2,2.09572845]
[1773135466006,2.09073486,2067.6,2066.8,2.09572845]
[1773135466197,2.09589267,2067.6,2066.8,2.09572845]
[1773135470302,0.00515781,2067.6,2066.8,2.09572845]
[1773135471805,2.08780131,2067.6,2066.8,2.09572845]
[1773135474011,0.00515781,2067.6,2066.8,2.09572845]
[1773135474407,2.0826435,2068.3,2066.8,2.33762845]
[1773135474610,2.0826435,2068.3,2067.1,2.28183669]
[1773135474904,2.0826435,2068.3,2067.3,2.03996669]
[1773135475511,2.08767144,2068.3,2067.3,2.03996669]
[1773135476012,2.32940144,2068.3,2067.3,2.03996669]
[1773135477011,2.3243935,2068.1,2067.1,2.03996669]
[1773135483020,2.0826435,2068.1,2067.1,2.03996669]
[1773135484420,2.00329319,2067.9,2067.1,2.03996669]
[1773135485116,4.0460301,2068.3,2067.1,2.03996669]
[1773135485322,2.00329319,2068.1,2067.1,2.03996669]
[1773135487520,1.87129769,2068.0,2067.1,2.03996669]
[1773135487720,2.00329319,2067.9,2067.1,2.03996669]
[1773135488118,3.87459088,2067.8,2067.1,2.03996669]
[1773135488319,2.00329319,2067.7,2067.1,2.03996669]
[1773135490427,2.00329319,2067.8,2067.3,1.88686962]
[1773135490628,2.00329319,2068.0,2067.3,1.88686962]
[1773135491023,2.00329319,2067.9,2067.3,1.88686962]
[1773135491824,2.00329319,2068.0,2067.3,1.88686962]
[1773135492828,2.00832113,2068.3,2067.8,1.88686962]
[1773135493024,0.00502794,2068.3,2067.8,1.88686962]
[1773135493425,2.88780565,2068.6,2068.0,1.88686962]
[1773135493729,0.88451246,2068.6,2068.0,1.88686962]
[1773135494133,2.88780565,2068.6,2068.0,1.88686962]
[1773135494728,1.87129769,2068.4,2067.6,1.88686962]
[1773135495024,2.00329319,2068.3,2067.6,1.88686962]
[1773135499633,2.24502319,2068.3,2067.6,1.88686962]
[1773135499835,2.00329319,2068.2,2067.6,1.88686962]
[1773135503938,2.00329319,2068.1,2067.6,1.88686962]
[1773135504632,2.00329319,2068.2,2067.6,1.88686962]
[1773135504838,8.33829319,2068.2,2067.6,1.88686962]
[1773135506039,2.24502319,2068.3,2067.6,1.88686962]
[1773135506239,8.58002319,2068.3,2067.6,1.88686962]
[1773135506535,2.00329319,2068.2,2067.6,1.88686962]
[1773135508234,6.57673,2068.3,2067.6,1.88686962]
[1773135508636,8.58002319,2068.3,2067.6,1.88686962]
[1773135509340,8.33829319,2068.3,2067.6,1.88686962]
[1773135510141,2.00329319,2068.2,2067.6,1.88686962]
[1773135511241,2.24504319,2068.1,2067.3,1.88686962]
[1773135511738,2.00329319,2068.5,2067.3,1.88686962]
[1773135511935,2.00329319,2068.3,2067.3,1.88686962]